fUST/lending_fUST_20250302
["ID","MTS","AMOUNT","RATE_DAILY","PERIOD"]
[355052159,1740882644428,-500.0,0.00024657,2]
[355052160,1740882644437,-500.0,0.00024657,2]
[355052161,1740882644448,-500.0,0.00024657,2]
[355052162,1740882644458,-2047.08,0.00024657,2]
[355052163,1740882644467,-500.0,0.00024657,2]
[355052164,1740882644477,-500.0,0.00024657,2]
[355052165,1740882644490,-500.0,0.00024657,2]
[355052166,1740882644499,-5858.04,0.00024657,2]
[355052167,1740882644509,-4201.36,0.00024657,2]
[355052168,1740882644520,-500.0,0.00024657,2]
[355052169,1740882644529,-2545.03,0.00024657,2]
[355052170,1740882644539,-661.11,0.00024657,2]
[355052171,1740882644549,-500.0,0.00024657,2]
[355052172,1740882644642,-660.12,0.00024657,2]
[355052173,1740882644652,-500.0,0.00024657,2]
[355052174,1740882644661,-500.0,0.00024657,2]
[355052175,1740882644671,-500.0,0.00024657,2]
[355052176,1740882644680,-500.0,0.00024657,2]
[355052177,1740882644690,-2696.97,0.00024657,2]
[355052178,1740882644699,-731.09,0.00024657,2]
[355052179,1740882644708,-584.12983624,0.00024657,2]
[355052180,1740882644718,-500.0,0.00024657,2]
[355052181,1740882644727,-502.37449777,0.00024657,2]
[355052182,1740882644737,-5763.38,0.00024657,2]
[355052183,1740882644746,-1732.36,0.00024657,2]
[355052184,1740882644756,-500.0,0.00024657,2]
[355052185,1740882644765,-500.0,0.00024657,2]
[355052186,1740882644774,-507.93692692,0.00024657,2]
[355052187,1740882644783,-2434.62,0.00024657,2]
[355052188,1740882644792,-500.0,0.00024657,2]
[355052189,1740882644802,-500.0,0.00024657,2]
[355052190,1740882644811,-1185.1,0.00024657,2]
[355052191,1740882644821,-500.0,0.00024657,2]
[355052192,1740882644831,-500.0,0.00024657,2]
[355052193,1740882644840,-500.0,0.00024657,2]
[355052194,1740882644849,-1720.7,0.00024657,2]
[355052195,1740882644859,-500.0,0.00024657,2]
[355052196,1740882644868,-500.0,0.00024657,2]
[355052197,1740882644878,-500.0,0.00024657,2]
[355052198,1740882644887,-504.70079488,0.00024657,2]
[355052199,1740882644896,-500.0,0.00024657,2]
[355052200,1740882644905,-500.0,0.00024657,2]
[355052201,1740882644915,-500.0,0.00024657,2]
[355052202,1740882644924,-630.18,0.00024657,2]
[355052203,1740882644933,-500.0,0.00024657,2]
[355052204,1740882644943,-500.0,0.00024657,2]
[355052205,1740882644953,-500.0,0.00024657,2]
[355052206,1740882644962,-500.0,0.00024657,2]
[355052207,1740882644973,-1280.93,0.00024657,2]
[355052208,1740882644984,-500.0,0.00024657,2]
[355052209,1740882644993,-979.74,0.00024657,2]
[355052210,1740882645003,-1560.48,0.00024657,2]
[355052211,1740882645012,-500.0,0.00024657,2]
[355052212,1740882645022,-500.0,0.00024657,2]
[355052213,1740882645031,-500.0,0.00024657,2]
[355052214,1740882645041,-500.0,0.00024657,2]
[355052215,1740882645052,-500.0,0.00024657,2]
[355052216,1740882645062,-500.0,0.00024657,2]
[355052217,1740882645071,-500.0,0.00024657,2]
[355052218,1740882645084,-500.0,0.00024657,2]
[355052219,1740882645093,-500.0,0.00024657,2]
[355052220,1740882645102,-500.0,0.00024657,2]
[355052221,1740882645111,-500.0,0.00024657,2]
[355052222,1740882645121,-500.0,0.00024657,2]
[355052223,1740882645131,-500.0,0.00024657,2]
[355052224,1740882645140,-500.0,0.00024657,2]
[355052225,1740882645151,-482.01742038,0.00024657,2]
[355052226,1740882645161,-500.0,0.00024657,2]
[355052227,1740882645171,-506.52099702,0.00024657,2]
[355052228,1740882645181,-757.47,0.00024657,2]
[355052229,1740882645191,-554.19015028,0.00024657,2]
[355052230,1740882645200,-500.0,0.00024657,2]
[355052231,1740882645210,-512.91,0.00024657,2]
[355052232,1740882645219,-500.0,0.00024657,2]
[355052233,1740882645230,-863.81,0.00024657,2]
[355052234,1740882645240,-500.0,0.00024657,2]
[355052235,1740882645249,-500.0,0.00024657,2]
[355052236,1740882645259,-500.0,0.00024657,2]
[355052237,1740882645268,-500.0,0.00024657,2]
[355052238,1740882645277,-1725.4,0.00024657,2]
[355052239,1740882645287,-500.0,0.00024657,2]
[355052240,1740882645296,-500.0,0.00024657,2]
[355052241,1740882645305,-500.0,0.00024657,2]
[355052242,1740882645314,-500.0,0.00024657,2]
[355052243,1740882645324,-500.0,0.00024657,2]
[355052244,1740882645333,-500.0,0.00024657,2]
[355052245,1740882645343,-500.0,0.00024657,2]
[355052246,1740882645352,-895.04,0.00024657,2]
[355052247,1740882645362,-500.0,0.00024657,2]
[355052248,1740882645371,-500.0,0.00024657,2]
[355052249,1740882645381,-2304.35,0.00024657,2]
[355052250,1740882645391,-325.86159838,0.00024657,2]
[355052251,1740882645400,-500.0,0.00024657,2]
[355052252,1740882645410,-500.0,0.00024657,2]
[355052253,1740882645419,-500.0,0.00024657,2]
[355052254,1740882645429,-18426.38,0.00024657,2]
[355052255,1740882645439,-918.66,0.00024657,2]
[355052256,1740882645448,-500.0,0.00024657,2]
[355052257,1740882645458,-500.0,0.00024657,2]
[355052258,1740882645467,-500.0,0.00024657,2]
[355052259,1740882645478,-500.0,0.00024657,2]
[355052260,1740882645487,-500.0,0.00024657,2]
[355052261,1740882645497,-500.0,0.00024657,2]
[355052262,1740882645507,-502.22450682,0.00024657,2]
[355052263,1740882645516,-500.0,0.00024657,2]
[355052264,1740882645526,-545.63,0.00024657,2]
[355052266,1740882645535,-642.07,0.00024657,2]
[355052269,1740882645545,-648.02,0.00024657,2]
[355052271,1740882645554,-500.0,0.00024657,2]
[355052274,1740882645563,-500.0,0.00024657,2]
[355052277,1740882645573,-1137.77,0.00024657,2]
[355052279,1740882645583,-500.0,0.00024657,2]
[355052281,1740882645593,-500.0,0.00024657,2]
[355052284,1740882645603,-13835.87,0.00024657,2]
[355052286,1740882645612,-1322.77,0.00024657,2]
[355052289,1740882645622,-500.0,0.00024657,2]
[355052291,1740882645632,-500.0,0.00024657,2]
[355052293,1740882645641,-8537.45,0.00024657,2]
[355052294,1740882645650,-500.0,0.00024657,2]
[355052296,1740882645660,-500.0,0.00024657,2]
[355052298,1740882645669,-500.0,0.00024657,2]
[355052299,1740882645678,-500.0,0.00024657,2]
[355052301,1740882645687,-500.0,0.00024657,2]
[355052302,1740882645697,-1329.7,0.00024657,2]
[355052304,1740882645706,-525.29,0.00024657,2]
[355052306,1740882645715,-967.58,0.00024657,2]
[355052308,1740882645726,-507.36085195,0.00024657,2]
[355052309,1740882645738,-500.0,0.00024657,2]
[355052311,1740882645748,-503.54,0.00024657,2]
[355052312,1740882645758,-4131.11,0.00024657,2]
[355052314,1740882645770,-500.0,0.00024657,2]
[355052316,1740882645779,-1423.0,0.00024657,2]
[355052318,1740882645788,-500.0,0.00024657,2]
[355052320,1740882645798,-932.56,0.00024657,2]
[355052321,1740882645807,-500.0,0.00024657,2]
[355052323,1740882645816,-509.79,0.00024657,2]
[355052324,1740882645826,-500.0,0.00024657,2]
[355052326,1740882645836,-500.0,0.00024657,2]
[355052328,1740882645845,-903.97,0.00024657,2]
[355052330,1740882645855,-500.0,0.00024657,2]
[355052331,1740882645864,-500.0,0.00024657,2]
[355052333,1740882645874,-1649.27,0.00024657,2]
[355052335,1740882645883,-500.0,0.00024657,2]
[355052336,1740882645893,-500.0,0.00024657,2]
[355052338,1740882645903,-500.0,0.00024657,2]
[355052340,1740882645912,-500.0,0.00024657,2]
[355052342,1740882645922,-500.0,0.00024657,2]
[355052343,1740882645931,-540.8,0.00024657,2]
[355052344,1740882645940,-500.0,0.00024657,2]
[355052346,1740882645950,-3226.72,0.00024657,2]
[355052347,1740882645959,-161.22764319,0.00024657,2]
[355052349,1740882645970,-500.0,0.00024657,2]
[355052351,1740882645979,-500.0,0.00024657,2]
[355052352,1740882645988,-500.0,0.00024657,2]
[355052354,1740882645998,-500.0,0.00024657,2]
[355052356,1740882646007,-500.0,0.00024657,2]
[355052357,1740882646017,-500.0,0.00024657,2]
[355052359,1740882646027,-500.0,0.00024657,2]
[355052361,1740882646037,-500.0,0.00024657,2]
[355052363,1740882646047,-500.0,0.00024657,2]
[355052364,1740882646056,-500.0,0.00024657,2]
[355052366,1740882646066,-500.0,0.00024657,2]
[355052367,1740882646075,-500.0,0.00024657,2]
[355052368,1740882646084,-2125.69,0.00024657,2]
[355052371,1740882646093,-500.0,0.00024657,2]
[355052372,1740882646103,-500.0,0.00024657,2]
[355052373,1740882646112,-500.0,0.00024657,2]
[355052375,1740882646122,-500.0,0.00024657,2]
[355052377,1740882646133,-500.0,0.00024657,2]
[355052378,1740882646143,-1923.7,0.00024657,2]
[355052380,1740882646152,-500.0,0.00024657,2]
[355052381,1740882646162,-500.0,0.00024657,2]
[355052383,1740882646171,-500.0,0.00024657,2]
[355052384,1740882646182,-500.0,0.00024657,2]
[355052386,1740882646191,-268.38855679,0.00024657,2]
[355052388,1740882646201,-500.0,0.00024657,2]
[355052389,1740882646210,-500.0,0.00024657,2]
[355052391,1740882646219,-253.98,0.00024657,2]
[355052393,1740882646230,-999.4,0.00024657,2]
[355052394,1740882646240,-500.0,0.00024657,2]
[355052396,1740882646249,-518.13393297,0.00024657,2]
[355052398,1740882646259,-500.0,0.00024657,2]
[355052399,1740882646268,-500.0,0.00024657,2]
[355052401,1740882646278,-500.0,0.00024657,2]
[355052403,1740882646287,-7702.6,0.00024657,2]
[355052404,1740882646297,-1378.78,0.00024657,5]
[355052406,1740882646306,-500.0,0.00024657,2]
[355052407,1740882646315,-1809.29,0.00024657,2]
[355052409,1740882646325,-16126.35,0.00024657,2]
[355052411,1740882646334,-1000.0,0.00024657,2]
[355052412,1740882646343,-567.82,0.00024657,2]
[355052414,1740882646353,-500.0,0.00024657,2]
[355052416,1740882646362,-1619.04,0.00024657,2]
[355052418,1740882646372,-500.0,0.00024657,2]
[355052419,1740882646381,-855.51,0.00024657,2]
[355052421,1740882646391,-500.0,0.00024657,2]
[355052423,1740882646401,-500.0,0.00024657,2]
[355052424,1740882646411,-500.0,0.00024657,2]
[355052426,1740882646420,-500.0,0.00024657,2]
[355052428,1740882646430,-1717.17,0.00024657,2]
[355052429,1740882646439,-500.0,0.00024657,2]
[355052431,1740882646449,-500.0,0.00024657,2]
[355052433,1740882646458,-2705.69,0.00024657,2]
[355052435,1740882646468,-406.76248546,0.00024657,2]
[355052436,1740882646478,-500.0,0.00024657,2]
[355052438,1740882646489,-500.0,0.00024657,2]
[355052440,1740882646500,-500.0,0.00024657,2]
[355052441,1740882646510,-500.0,0.00024657,2]
[355052443,1740882646519,-500.0,0.00024657,2]
[355052445,1740882646529,-1700.37,0.00024657,2]
[355052446,1740882646538,-636.00143111,0.00024657,2]
[355052448,1740882646548,-500.0,0.00024657,2]
[355052449,1740882646558,-1241.33,0.00024657,2]
[355052451,1740882646568,-500.0,0.00024657,2]
[355052452,1740882646579,-500.0,0.00024657,2]
[355052454,1740882646589,-500.0,0.00024657,2]
[355052456,1740882646600,-500.0,0.00024657,2]
[355052457,1740882646610,-500.0,0.00024657,2]
[355052459,1740882646621,-500.0,0.00024657,2]
[355052461,1740882646631,-500.0,0.00024657,2]
[355052462,1740882646640,-3625.46,0.00024657,2]
[355052464,1740882646650,-500.0,0.00024657,2]
[355052466,1740882646660,-2106.88,0.00024657,2]
[355052467,1740882646670,-540.28552277,0.00024657,2]
[355052469,1740882646680,-500.0,0.00024657,2]
[355052471,1740882646690,-3931.29,0.00024657,2]
[355052473,1740882646700,-1305.73,0.00024657,2]
[355052474,1740882646709,-500.0,0.00024657,2]
[355052476,1740882646719,-7044.9,0.00024657,2]
[355052478,1740882646730,-500.0,0.00024657,2]
[355052479,1740882646740,-500.0,0.00024657,2]
[355052481,1740882646749,-357.21705909,0.00024657,2]
[355052482,1740882646758,-471.57093837,0.00024657,2]
[355052484,1740882646768,-500.0,0.00024657,2]
[355052486,1740882646778,-500.0,0.00024657,2]
[355052488,1740882646787,-500.0,0.00024657,2]
[355052490,1740882646797,-523.89389121,0.00024657,2]
[355052492,1740882646807,-1422.78,0.00024657,2]
[355052494,1740882646818,-500.0,0.00024657,2]
[355052496,1740882646828,-19976.67,0.00024657,2]
[355052498,1740882646838,-698.15,0.00024657,2]
[355052500,1740882646848,-648.66,0.00024657,2]
[355052502,1740882646858,-500.0,0.00024657,2]
[355052504,1740882646869,-500.0,0.00024657,2]
[355052506,1740882646879,-1247.05,0.00024657,2]
[355052508,1740882646890,-500.0,0.00024657,2]
[355052510,1740882646899,-500.0,0.00024657,2]
[355052511,1740882646909,-500.0,0.00024657,2]
[355052512,1740882646919,-500.0,0.00024657,2]
[355052513,1740882646929,-579.3723077,0.00024657,2]
[355052514,1740882646938,-500.0,0.00024657,2]
[355052515,1740882646948,-624.8,0.00024657,2]
[355052516,1740882646958,-500.0,0.00024657,2]
[355052517,1740882646969,-579.48950715,0.00024657,2]
[355052518,1740882646981,-500.0,0.00024657,2]
[355052519,1740882646991,-500.0,0.00024657,2]
[355052520,1740882647001,-500.0,0.00024657,2]
[355052521,1740882647011,-500.0,0.00024657,2]
[355052522,1740882647020,-500.0,0.00024657,2]
[355052523,1740882647032,-500.0,0.00024657,2]
[355052524,1740882647042,-1119.36,0.00024657,2]
[355052525,1740882647052,-514.26244761,0.00024657,2]
[355052526,1740882647062,-3724.79,0.00024657,2]
[355052527,1740882647073,-502.60772376,0.00024657,2]
[355052528,1740882647083,-500.0,0.00024657,2]
[355052529,1740882647094,-500.0,0.00024657,2]
[355052530,1740882647104,-500.0,0.00024657,2]
[355052531,1740882647116,-730.72,0.00024657,2]
[355052532,1740882647125,-500.0,0.00024657,2]
[355052533,1740882647136,-500.0,0.00024657,2]
[355052534,1740882647146,-500.0,0.00024657,2]
[355052535,1740882647158,-500.0,0.00024657,2]
[355052537,1740882647168,-500.0,0.00024657,2]
[355052538,1740882647178,-500.0,0.00024657,2]
[355052539,1740882647188,-500.0,0.00024657,2]
[355052541,1740882647200,-1000.0,0.00024658,2]
[355052542,1740882647211,-1000.0,0.00024658,2]
[355052544,1740882647221,-1000.0,0.00024658,2]
[355052547,1740882647232,-380.0,0.00024658,2]
[355052549,1740882647242,-200.0,0.00024658,2]
[355052551,1740882647253,-557.825016,0.00024658,2]
[355052553,1740882647264,-558.078098,0.00024658,2]
[355052555,1740882647274,-558.078098,0.00024658,2]
[355052557,1740882647284,-600.36421962,0.00024658,2]
[355052559,1740882647294,-500.0,0.00024658,2]
[355052561,1740882647305,-500.0,0.00024658,2]
[355052563,1740882647315,-500.0,0.00024658,2]
[355052565,1740882647325,-462.95017892,0.00024658,2]
[355052567,1740882647339,-500.0,0.00024658,2]
[355052569,1740882647358,-500.0,0.00024658,2]
[355052571,1740882647368,-500.0,0.00024658,2]
[355052573,1740882647378,-500.0,0.00024658,2]
[355052575,1740882647389,-500.0,0.00024658,2]
[355052577,1740882647399,-500.0,0.00024658,2]
[355052579,1740882647409,-427.44419974,0.00024658,2]
[355052581,1740882647419,-300.35397107,0.00024673,2]
[355052583,1740882647428,-401.3159069,0.00024673,2]
[355052586,1740882647439,-260.59788216,0.00024673,2]
[355052588,1740882647449,-153.2381289,0.00024673,2]
[355052590,1740882647459,-500.0,0.00024673,2]
[355052591,1740882647469,-500.0,0.00024673,2]
[355052593,1740882647480,-500.0,0.00024673,2]
[355052595,1740882647490,-500.0,0.00024673,2]
[355052597,1740882647500,-160.03203288,0.00024673,2]
[355052599,1740882647510,-500.0,0.00024673,2]
[355052601,1740882647520,-500.0,0.00024673,2]
[355052603,1740882647530,-500.0,0.00024673,2]
[355052605,1740882647542,-344.33537435,0.00024673,2]
[355052607,1740882647552,-500.0,0.00024673,2]
[355052609,1740882647562,-500.0,0.00024673,2]
[355052611,1740882647573,-602.91949205,0.00024673,2]
[355052613,1740882647583,-500.0,0.00024673,2]
[355052616,1740882647594,-500.0,0.00024673,2]
[355052618,1740882647604,-500.0,0.00024673,2]
[355052619,1740882647614,-508.48599119,0.00024673,2]
[355052622,1740882647625,-501.85639985,0.00024673,2]
[355052624,1740882647635,-500.0,0.00024673,2]
[355052626,1740882647650,-500.0,0.00024673,2]
[355052628,1740882647660,-500.0,0.00024673,2]
[355052630,1740882647671,-500.0,0.00024673,2]
[355052632,1740882647681,-500.84469413,0.00024673,2]
[355052634,1740882647690,-160.03203287,0.00024673,2]
[355052636,1740882647701,-161.64554503,0.00024673,2]
[355052638,1740882647710,-500.52565708,0.00024673,2]
[355052640,1740882647720,-160.03203288,0.00024673,2]
[355052642,1740882647731,-160.03203288,0.00024673,2]
[355052644,1740882647741,-401.95150697,0.00024673,2]
[355052646,1740882647751,-500.0,0.00024673,2]
[355052647,1740882647760,-500.0,0.00024673,2]
[355052649,1740882647771,-500.0,0.00024673,2]
[355052651,1740882647781,-500.0,0.00024673,2]
[355052653,1740882647790,-490.53218643,0.00024673,2]
[355052655,1740882647801,-251.68016735,0.00024673,2]
[355052656,1740882647811,-326.89472636,0.00024673,2]
[355052658,1740882647821,-402.65975648,0.00024673,2]
[355052660,1740882647831,-738.240953,0.000247,2]
[355052661,1740882647842,-179.29425757,0.0002474,2]
[355052662,1740882647852,-12438.30142655,0.00024789,2]
[355052663,1740882647862,-711.6972872,0.00024795,2]
[355052664,1740882647873,-355.8486436,0.00024795,2]
[355052665,1740882647883,-2000.0,0.000248,3]
[355052666,1740882647893,-2000.0,0.000248,7]
[355052667,1740882647904,-2000.0,0.000248,10]
[355052668,1740882647915,-500.0,0.000248,2]
[355052669,1740882647925,-918.59,0.000248,2]
[355052670,1740882647935,-7911.14338679,0.00024831,2]
[355052671,1740882647945,-179.29425757,0.00024831,2]
[355052672,1740882647956,-500.0,0.000249,2]
[355052673,1740882647966,-210.45391742,0.000249,4]
[355052674,1740882647976,-500.0,0.00024931,2]
[355052675,1740882647987,-500.0,0.00024931,2]
[355052676,1740882647997,-500.0,0.00024931,2]
[355052677,1740882648008,-500.0,0.00024931,2]
[355052678,1740882648020,-500.0,0.00024931,2]
[355052679,1740882648031,-500.0,0.00024931,2]
[355052680,1740882648041,-500.0,0.00024931,2]
[355052681,1740882648051,-500.0,0.00024931,2]
[355052682,1740882648062,-500.0,0.00024931,2]
[355052683,1740882648072,-500.0,0.00024931,2]
[355052684,1740882648081,-500.0,0.00024931,2]
[355052685,1740882648091,-500.0,0.00024931,2]
[355052686,1740882648102,-500.0,0.00024931,2]
[355052687,1740882648111,-500.0,0.00024931,2]
[355052688,1740882648122,-156.54504337,0.00024931,2]
[355052689,1740882648136,-500.0,0.00024931,2]
[355052690,1740882648147,-197.20646083,0.00024931,2]
[355052691,1740882648159,-155.89077726,0.00024931,2]
[355052692,1740882648170,-524.89338505,0.00024931,2]
[355052693,1740882648181,-500.0,0.00024931,2]
[355052694,1740882648192,-500.0,0.00024931,2]
[355052695,1740882648201,-500.0,0.00024931,2]
[355052696,1740882648212,-503.30458857,0.00024931,2]
[355052697,1740882648223,-507.62488777,0.00024931,2]
[355052698,1740882648237,-500.0,0.00024931,2]
[355052699,1740882648247,-502.59073008,0.00024931,2]
[355052700,1740882648258,-503.2757941,0.00024931,2]
[355052701,1740882648268,-518.50620241,0.00024931,2]
[355052702,1740882648279,-500.0,0.00024931,2]
[355052703,1740882648290,-500.0,0.00024931,2]
[355052704,1740882648301,-500.0,0.00024931,2]
[355052705,1740882648311,-500.0,0.00024931,2]
[355052706,1740882648322,-500.0,0.00024931,2]
[355052707,1740882648332,-790.08,0.00024931,2]
[355052708,1740882648342,-500.0,0.00024931,2]
[355052709,1740882648352,-500.0,0.00024931,2]
[355052710,1740882648363,-871.27,0.00024931,2]
[355052711,1740882648374,-500.0,0.00024931,2]
[355052712,1740882648385,-500.0,0.00024931,2]
[355052713,1740882648395,-500.0,0.00024931,2]
[355052714,1740882648406,-509.26764458,0.00024931,2]
[355052715,1740882648417,-666.14,0.00024931,2]
[355052716,1740882648427,-502.58412057,0.00024931,2]
[355052717,1740882648438,-500.0,0.00024931,2]
[355052718,1740882648448,-500.0,0.00024931,2]
[355052719,1740882648458,-500.0,0.00024931,2]
[355052720,1740882648468,-500.0,0.00024931,2]
[355052721,1740882648478,-500.0,0.00024931,2]
[355052722,1740882648490,-355.25158219,0.00024931,2]
[355052723,1740882648501,-500.0,0.00024931,2]
[355052724,1740882648512,-501.34265379,0.00024931,2]
[355052725,1740882648523,-1062.6,0.00024931,2]
[355052726,1740882648534,-507.68333691,0.00024931,2]
[355052727,1740882648545,-500.0,0.00024931,2]
[355052728,1740882648555,-500.0,0.00024931,2]
[355052729,1740882648566,-502.67469245,0.00024931,2]
[355052730,1740882648576,-500.0,0.00024931,2]
[355052731,1740882648587,-500.0,0.00024931,2]
[355052732,1740882648597,-500.0,0.00024931,2]
[355052733,1740882648606,-643.95,0.00024931,2]
[355052734,1740882648616,-200.0,0.00024931,2]
[355052735,1740882648627,-445.60478136,0.00024931,2]
[355052736,1740882648637,-517.33875745,0.00024931,2]
[355052737,1740882648648,-511.5935325,0.00024931,2]
[355052738,1740882648659,-500.0,0.00024931,2]
[355052739,1740882648669,-500.0,0.00024931,2]
[355052740,1740882648679,-500.0,0.00024931,2]
[355052741,1740882648690,-500.0,0.00024931,2]
[355052742,1740882648703,-502.29042089,0.00024931,2]
[355052743,1740882648718,-500.0,0.00024931,2]
[355052744,1740882648728,-848.79,0.00024931,2]
[355052745,1740882648741,-500.0,0.00024931,2]
[355052746,1740882648752,-500.0,0.00024931,2]
[355052747,1740882648763,-511.66903973,0.00024931,2]
[355052748,1740882648775,-500.0,0.00024931,2]
[355052749,1740882648786,-500.0,0.00024931,2]
[355052750,1740882648797,-500.0,0.00024931,2]
[355052751,1740882648808,-508.40523626,0.00024931,2]
[355052752,1740882648818,-601.45,0.00024931,2]
[355052753,1740882648828,-500.0,0.00024931,2]
[355052754,1740882648838,-500.0,0.00024931,2]
[355052755,1740882648848,-500.0,0.00024931,2]
[355052756,1740882648858,-500.0,0.00024931,2]
[355052757,1740882648868,-500.0,0.00024931,2]
[355052758,1740882648879,-500.0,0.00024931,2]
[355052759,1740882648890,-946.7,0.00024931,2]
[355052760,1740882649115,-500.0,0.00024931,2]
[355052761,1740882649126,-544.79180928,0.00024931,2]
[355052762,1740882649141,-500.0,0.00024931,2]
[355052763,1740882649151,-505.68202986,0.00024931,2]
[355052764,1740882649161,-500.0,0.00024931,2]
[355052765,1740882649171,-500.0,0.00024931,2]
[355052766,1740882649183,-798.08,0.00024931,2]
[355052767,1740882649193,-500.0,0.00024931,2]
[355052768,1740882649203,-1191.66,0.00024931,2]
[355052769,1740882649214,-500.0,0.00024931,2]
[355052770,1740882649223,-500.0,0.00024931,2]
[355052771,1740882649233,-500.0,0.00024931,2]
[355052772,1740882649243,-500.0,0.00024931,2]
[355052773,1740882649253,-500.0,0.00024931,2]
[355052774,1740882649263,-500.0,0.00024931,2]
[355052775,1740882649273,-500.0,0.00024931,2]
[355052776,1740882649282,-500.0,0.00024931,2]
[355052777,1740882649292,-500.0,0.00024931,2]
[355052778,1740882649302,-500.0,0.00024931,2]
[355052779,1740882649312,-500.0,0.00024931,2]
[355052780,1740882649322,-635.89115161,0.00024931,2]
[355052781,1740882649332,-500.0,0.00024931,2]
[355052782,1740882649342,-500.0,0.00024931,2]
[355052783,1740882649354,-513.99022164,0.00024931,2]
[355052784,1740882649363,-500.0,0.00024931,2]
[355052785,1740882649376,-500.0,0.00024931,2]
[355052786,1740882649386,-500.0,0.00024931,2]
[355052787,1740882649396,-500.0,0.00024931,2]
[355052788,1740882649406,-500.0,0.00024931,2]
[355052789,1740882649416,-500.0,0.00024931,2]
[355052790,1740882649426,-546.19604656,0.00024931,2]
[355052791,1740882649436,-509.57012197,0.00024931,2]
[355052792,1740882649446,-500.0,0.00024931,2]
[355052793,1740882649455,-500.0,0.00024931,2]
[355052794,1740882649465,-500.0,0.00024931,2]
[355052795,1740882649475,-500.0,0.00024931,2]
[355052796,1740882649486,-500.0,0.00024931,2]
[355052797,1740882649496,-500.33,0.00024931,2]
[355052798,1740882649506,-500.0,0.00024931,2]
[355052799,1740882649515,-500.0,0.00024931,2]
[355052800,1740882649525,-500.0,0.00024931,2]
[355052801,1740882649535,-500.0,0.00024931,2]
[355052802,1740882649544,-500.0,0.00024931,2]
[355052803,1740882649554,-500.0,0.00024931,2]
[355052804,1740882649564,-500.0,0.00024931,2]
[355052805,1740882649574,-1144.38,0.00024931,2]
[355052806,1740882649583,-500.0,0.00024931,2]
[355052807,1740882649593,-404.30420021,0.00024931,2]
[355052808,1740882649603,-500.0,0.00024931,2]
[355052809,1740882649613,-503.58911786,0.00024931,2]
[355052810,1740882649623,-500.0,0.00024931,2]
[355052811,1740882649632,-955.47,0.00024931,2]
[355052812,1740882649642,-500.0,0.00024931,2]
[355052813,1740882649652,-500.0,0.00024931,2]
[355052814,1740882649661,-506.62545058,0.00024931,2]
[355052815,1740882649671,-500.0,0.00024931,2]
[355052816,1740882649681,-544.07,0.00024931,2]
[355052817,1740882649691,-678.05,0.00024931,2]
[355052818,1740882649701,-500.0,0.00024931,2]
[355052819,1740882649711,-501.62,0.00024931,2]
[355052820,1740882649720,-500.0,0.00024931,2]
[355052821,1740882649730,-500.0,0.00024931,2]
[355052822,1740882649741,-500.0,0.00024931,2]
[355052823,1740882649750,-500.0,0.00024931,2]
[355052824,1740882649760,-500.0,0.00024931,2]